[Event "EYTCC Open U12 2018"]
[Site "Bad Blankeburg"]
[Date "2018.07.12"]
[Round "1"]
[White "Maurizzi, Marc Andria"]
[Black "Gokcek, Kursat Bugra"]
[Result "*"]
[ECO "C28"]
[WhiteElo "2155"]
[BlackElo "1974"]
[Annotator "NA"]
[PlyCount "72"]
[EventDate "2018.07.12"]
[EventType "swiss"]
[EventCountry "GER"]
[SourceTitle "playchess.com"]
[Source "ChessBase"]
[SourceQuality "1"]
[TimeControl "40/5400+30:1800+30"]

1. e4 {[%emt 0:00:00]} e5 {[%emt 0:00:00]} 2. Nc3 {[%emt 0:00:00]} Nf6 {[%emt 0:00:21]} 3. Bc4 {[%emt 0:00:41]} Nc6 {[%emt 0:00:36]} 4. d3 {[%emt 0:01:25]} Be7 {[%emt 0:03:06]} 5. Be3 {[%emt 0:01:28]} Na5 {[%emt 0:02:16]} 6. Nf3 {[%emt 0:01:57]} Nxc4 {[%emt 0:01:45]} 7. dxc4 {[%emt 0:00:45]} d6 {[%emt 0:00:10]} 8. h3 {[%emt 0:00:50]} Be6 {[%emt 0:02:40]} 9. Qe2 {[%emt 0:01:20]} c5 {[%emt 0:07:08]} 10. g4 {[%emt 0:03:10]} Qa5 {[%emt 0:04:27]} 11. Nd2 {[%emt 0:01:16]} h6 {[%emt 0:04:24]} 12. f4 {[%emt 0:02:23]} exf4 {[%emt 0:01:31]} 13. Bxf4 {[%emt 0:00:38]} O-O-O {[%emt 0:00:22]} 14. O-O-O {[%emt 0:00:29]} g5 {[%emt 0:05:07]} 15. Bg3 {[%emt 0:02:44]} h5 {[%emt 0:07:34]} 16. Nb3 {[%emt 0:01:34]} Qb4 {[%emt 0:12:10]} 17. Nd5 {[%emt 0:02:38]} Bxd5 {[%emt 0:01:18]} 18. exd5 {[%emt 0:00:14]} Rde8 {[%emt 0:01:48]} 19. a3 {[%emt 0:00:25]} Qa4 {[%emt 0:01:18]} 20. Nd2 {[%emt 0:11:16]} hxg4 21. hxg4 {[%emt 0:00:23]} Rxh1 {[%emt 0:06:49]} 22. Rxh1 {[%emt 0:00:03]} Qd7 {[%emt 0:00:12]} 23. Ne4 {[%emt 0:14:47]} Nxg4 {[%emt 0:15:04]} 24. Bxd6 {[%emt 0:05:37]} f5 {[%emt 0:01:11]} 25. Bxe7 {[%emt 0:01:20]} Rxe7 {[%emt 0:00:28]} 26. Rh8+ {[%emt 0:00:30]} Kc7 {[%emt 0:00:16]} 27. d6+ {[%emt 0:01:09]} Qxd6 {[%emt 0:00:12]} 28. Nxd6 {[%emt 0:02:18]} Rxe2 {[%emt 0:00:11]} 29. Nxf5 {[%emt 0:00:40]} Rf2 {[%emt 0:07:26]} 30. Rh7+ {[%emt 0:01:15]} Kb6 {[%emt 0:01:12]} 31. Nd6 {[%emt 0:04:58]} Ne3 {[%emt 0:04:36]} 32. Nc8+ {[%emt 0:01:54]} Kc6 {[%emt 0:03:22]} 33. Nxa7+ {[%emt 0:03:39]} Kd6 {[%emt 0:00:07]} 34. Rg7 {[%emt 0:00:52]} g4 {[%emt 0:00:17]} 35. Rg5 {[%emt 0:01:38]} Rxc2+ {[%emt 0:01:17]} 36. Kb1 {[%emt 0:00:22]} Rxc4 {[%emt 0:00:51]} *

[Event "EYTCC Open U12 2018"]
[Site "Bad Blankeburg"]
[Date "2018.07.12"]
[Round "1"]
[White "Maurizzi, Marc Andria"]
[Black "Gokcek, Kursat Bugra"]
[Result "0-1"]
[ECO "B47"]
[WhiteElo "2155"]
[BlackElo "1974"]
[Annotator "NA"]
[PlyCount "86"]
[EventDate "2018.07.12"]
[EventType "swiss"]
[EventCountry "GER"]
[SourceTitle "playchess.com"]
[Source "ChessBase"]
[SourceQuality "1"]
[TimeControl "40/5400+30:1800+30"]

1. e4 {[%emt 0:00:00]} c5 {[%emt 0:00:15]} 2. Nf3 {[%emt 0:00:00]} e6 {[%emt 0:00:16]} 3. d4 {[%emt 0:00:21]} cxd4 {[%emt 0:00:07]} 4. Nxd4 {[%emt 0:00:25]} Nc6 {[%emt 0:00:11]} 5. Nc3 {[%emt 0:00:21]} Qc7 {[%emt 0:00:06]} 6. Be2 {[%emt 0:00:16]} Nf6 {[%emt 0:00:46]} 7. O-O {[%emt 0:00:35]} a6 {[%emt 0:00:01]} 8. Be3 {[%emt 0:00:44]} b5 {[%emt 0:00:12]} 9. Nxc6 {[%emt 0:00:57]} dxc6 {[%emt 0:00:08]} 10. f4 {[%emt 0:00:12]} Be7 {[%emt 0:03:02]} 11. e5 {[%emt 0:01:22]} Nd5 {[%emt 0:00:05]} 12. Nxd5 {[%emt 0:00:11]} cxd5 {[%emt 0:00:05]} 13. Kh1 {[%emt 0:01:58]} Bd7 {[%emt 0:00:54]} 14. Bd3 {[%emt 0:03:21]} Bc5 {[%emt 0:12:02]} 15. Bxc5 {[%emt 0:10:56]} Qxc5 {[%emt 0:00:04]} 16. c3 {[%emt 0:12:21]} g6 {[%emt 0:16:00]} 17. Qd2 {[%emt 0:24:26]} O-O {[%emt 0:29:22]} 18. Rae1 {[%emt 0:16:16]} Rfb8 {[%emt 0:15:31]} 19. b4 {[%emt 0:05:58]} Qf8 {[%emt 0:10:25]} 20. Rf3 {[%emt 0:00:59]} a5 {[%emt 0:00:34]} 21. bxa5 {[%emt 0:02:23]} Rxa5 {[%emt 0:00:05]} 22. Bb1 {[%emt 0:01:41]} b4 {[%emt 0:03:24]} 23. Rc1 {[%emt 0:06:28]} Ra3 {[%emt 0:02:49]} 24. Rg3 {[%emt 0:04:20]} b3 {[%emt 0:02:11]} 25. axb3 {[%emt 0:00:22]} Raxb3 {[%emt 0:00:16]} 26. Bc2 {[%emt 0:00:36]} Rb2 {[%emt 0:00:30]} 27. h3 {[%emt 0:02:01]} Ra2 {[%emt 0:01:03]} 28. c4 {[%emt 0:03:00]} Bc6 {[%emt 0:01:35]} 29. cxd5 {[%emt 0:00:29]} Bxd5 {[%emt 0:00:01]} 30. Qe3 {[%emt 0:00:27]} Rc8 {[%emt 0:01:29]} 31. Bd3 {[%emt 0:01:29]} Rxc1+ 32. Qxc1 {[%emt 0:00:01]} Qa8 {[%emt 0:00:29]} 33. Bb1 {[%emt 0:00:50]} Rxg2 {[%emt 0:01:56]} 34. Rxg2 {[%emt 0:00:05]} Bxg2+ {[%emt 0:00:01]} 35. Kh2 {[%emt 0:00:01]} Bd5 {[%emt 0:01:00]} 36. Qc7 {[%emt 0:01:05]} Kg7 {[%emt 0:00:33]} 37. Qc3 {[%emt 0:00:34]} Qa7 {[%emt 0:00:13]} 38. Qd2 {[%emt 0:00:34]} Qa1 {[%emt 0:00:12]} 39. Qb4 {[%emt 0:00:35]} Qa7 {[%emt 0:00:37]} 40. Qd2 {[%emt 0:00:06]} Qa1 {[%emt 0:00:02]} 41. Qb4 {[%emt 0:30:14]} g5 {[%emt 0:31:05]} 42. Kg3 {[%emt 0:00:00]} Qa7 {[%emt 0:00:00]} 43. Qe1 {[%emt 0:00:00]} Qa3+ {[%emt 0:00:00]} 0-1

[Event "EYTCC Open U12 2018"]
[Site "Bad Blankeburg"]
[Date "2018.07.12"]
[Round "1"]
[White "Pasztor, Balazs"]
[Black "Stalmach, Richard"]
[Result "0-1"]
[ECO "C09"]
[WhiteElo "2141"]
[BlackElo "2063"]
[Annotator "NA"]
[PlyCount "178"]
[EventDate "2018.07.12"]
[EventType "swiss"]
[EventCountry "GER"]
[SourceTitle "playchess.com"]
[Source "ChessBase"]
[SourceQuality "1"]
[TimeControl "40/5400+30:1800+30"]

1. e4 {[%emt 0:00:00]} e6 2. d4 {[%emt 0:00:00]} d5 {[%emt 0:00:30]} 3. Nd2 {[%emt 0:00:16]} c5 {[%emt 0:00:32]} 4. exd5 {[%emt 0:00:40]} exd5 {[%emt 0:00:12]} 5. Ngf3 {[%emt 0:00:19]} Nc6 {[%emt 0:00:31]} 6. Bb5 {[%emt 0:00:30]} cxd4 {[%emt 0:00:14]} 7. O-O {[%emt 0:03:33]} Bd6 {[%emt 0:00:43]} 8. Nb3 {[%emt 0:03:19]} Nge7 {[%emt 0:01:44]} 9. Re1 {[%emt 0:01:42]} O-O {[%emt 0:01:36]} 10. Nfxd4 {[%emt 0:04:09]} Qc7 {[%emt 0:05:22]} 11. h3 {[%emt 0:08:31]} Ne5 {[%emt 0:16:15]} 12. Bf4 {[%emt 0:10:49]} f6 {[%emt 0:07:42]} 13. Qe2 {[%emt 0:08:27]} a6 {[%emt 0:05:48]} 14. Bd3 {[%emt 0:02:09]} Bd7 {[%emt 0:06:53]} 15. c3 {[%emt 0:14:26]} Rfe8 {[%emt 0:04:16]} 16. Qc2 {[%emt 0:02:18]} Nxd3 {[%emt 0:00:21]} 17. Bxd6 {[%emt 0:01:41]} Nxe1 {[%emt 0:00:21]} 18. Bxc7 {[%emt 0:00:13]} Nxc2 {[%emt 0:00:01]} 19. Nxc2 {[%emt 0:00:11]} Rac8 {[%emt 0:01:51]} 20. Bb6 {[%emt 0:04:30]} Nf5 {[%emt 0:01:57]} 21. Be3 {[%emt 0:01:49]} Nd6 {[%emt 0:02:02]} 22. Nd2 {[%emt 0:07:39]} Bf5 {[%emt 0:12:54]} 23. Nd4 {[%emt 0:01:11]} Be4 {[%emt 0:03:18]} 24. Bf4 {[%emt 0:07:19]} Nc4 {[%emt 0:03:03]} 25. Nxc4 {[%emt 0:00:25]} Rxc4 {[%emt 0:00:28]} 26. Be3 {[%emt 0:01:29]} b5 {[%emt 0:01:30]} 27. a3 {[%emt 0:00:38]} Rb8 {[%emt 0:04:55]} 28. Kf1 {[%emt 0:03:57]} a5 {[%emt 0:03:40]} 29. Bd2 {[%emt 0:01:18]} b4 {[%emt 0:05:38]} 30. axb4 {[%emt 0:00:51]} axb4 {[%emt 0:00:08]} 31. Ra7 {[%emt 0:01:04]} bxc3 {[%emt 0:01:31]} 32. Bxc3 {[%emt 0:00:12]} Rb6 {[%emt 0:02:14]} 33. f3 {[%emt 0:02:40]} Bd3+ {[%emt 0:00:39]} 34. Kf2 {[%emt 0:00:27]} Rc8 {[%emt 0:00:15]} 35. Ke3 {[%emt 0:01:00]} Bg6 {[%emt 0:02:43]} 36. Kf4 {[%emt 0:01:41]} Bb1 {[%emt 0:01:23]} 37. Rd7 {[%emt 0:01:29]} g5+ {[%emt 0:01:10]} 38. Kg4 {[%emt 0:01:18]} Rc5 {[%emt 0:00:32]} 39. Re7 {[%emt 0:01:38]} Kf8 {[%emt 0:01:18]} 40. Re6 {[%emt 0:01:30]} Rcb5 {[%emt 0:01:43]} 41. Rxf6+ {[%emt 0:06:31]} Rxf6 {[%emt 0:00:11]} 42. Nxb5 {[%emt 0:00:20]} Rc6 {[%emt 0:02:43]} 43. Nd4 {[%emt 0:05:06]} Ra6 {[%emt 0:02:14]} 44. f4 {[%emt 0:05:51]} gxf4 {[%emt 0:01:48]} 45. Kxf4 {[%emt 0:00:32]} Be4 {[%emt 0:00:40]} 46. g4 {[%emt 0:01:46]} Rf6+ {[%emt 0:02:00]} 47. Nf5 {[%emt 0:02:45]} Rg6 {[%emt 0:02:19]} 48. Bb4+ {[%emt 0:04:44]} Kf7 {[%emt 0:02:05]} 49. Nd6+ {[%emt 0:01:37]} Ke6 {[%emt 0:02:09]} 50. Nxe4 {[%emt 0:02:06]} dxe4 {[%emt 0:00:04]} 51. Kxe4 {[%emt 0:01:06]} Rh6 {[%emt 0:00:13]} 52. Bc5 {[%emt 0:00:36]} Rxh3 {[%emt 0:00:33]} 53. b4 {[%emt 0:00:21]} Rc3 {[%emt 0:01:11]} 54. Kf4 {[%emt 0:00:19]} Rc4+ {[%emt 0:01:32]} 55. Kg5 {[%emt 0:01:17]} Kf7 {[%emt 0:00:14]} 56. Kf5 {[%emt 0:01:35]} Kg7 {[%emt 0:01:55]} 57. Bd6 {[%emt 0:00:26]} Rc1 {[%emt 0:01:22]} 58. Bg3 {[%emt 0:00:56]} Kf7 {[%emt 0:00:20]} 59. Bd6 {[%emt 0:01:02]} Rd1 {[%emt 0:00:40]} 60. Bc5 {[%emt 0:01:07]} Rd5+ {[%emt 0:00:21]} 61. Ke4 {[%emt 0:00:38]} Rg5 {[%emt 0:00:12]} 62. Kf4 {[%emt 0:00:35]} Kg6 {[%emt 0:00:11]} 63. Be7 {[%emt 0:00:42]} Rd5 {[%emt 0:00:19]} 64. Ke4 {[%emt 0:00:28]} Rd7 {[%emt 0:00:19]} 65. Bc5 {[%emt 0:01:11]} Kg5 {[%emt 0:00:56]} 66. b5 {[%emt 0:00:18]} Kxg4 {[%emt 0:01:16]} 67. b6 {[%emt 0:00:29]} h5 {[%emt 0:00:51]} 68. Bg1 {[%emt 0:01:09]} Kg3 {[%emt 0:01:20]} 69. Bd4 {[%emt 0:00:37]} Re7+ {[%emt 0:03:36]} 70. Kf5 {[%emt 0:00:47]} Rb7 {[%emt 0:00:46]} 71. Be5+ {[%emt 0:00:31]} Kg2 {[%emt 0:00:23]} 72. Bc7 {[%emt 0:00:31]} h4 {[%emt 0:00:04]} 73. Ke5 {[%emt 0:00:39]} h3 {[%emt 0:00:07]} 74. Kd5 {[%emt 0:00:04]} Rxb6 {[%emt 0:00:18]} 75. Bxb6 {[%emt 0:00:53]} h2 {[%emt 0:00:06]} 76. Kc6 {[%emt 0:00:09]} h1=Q {[%emt 0:00:06]} 77. Bc5 {[%emt 0:00:06]} Kg3+ {[%emt 0:00:10]} 78. Kd6 {[%emt 0:00:06]} Qh6+ {[%emt 0:00:11]} 79. Kd5 {[%emt 0:00:02]} Qg5+ {[%emt 0:00:18]} 80. Kc6 {[%emt 0:00:08]} Kf3 {[%emt 0:00:15]} 81. Bd6 {[%emt 0:00:17]} Ke4 {[%emt 0:00:06]} 82. Bc5 {[%emt 0:00:07]} Qd5+ {[%emt 0:00:12]} 83. Kb6 {[%emt 0:00:04]} Qd8+ {[%emt 0:00:11]} 84. Kc6 {[%emt 0:00:11]} Ke5 {[%emt 0:00:18]} 85. Bb6 {[%emt 0:00:20]} Qd5+ {[%emt 0:00:17]} 86. Kc7 {[%emt 0:00:06]} Qd6+ {[%emt 0:00:09]} 87. Kb7 {[%emt 0:00:03]} Kd5 {[%emt 0:00:05]} 88. Ka8 {[%emt 0:00:16]} Kc6 {[%emt 0:00:13]} 89. Bc7 {[%emt 0:00:28]} Kxc7 0-1

[Event "EYTCC Open U12 2018"]
[Site "Bad Blankeburg"]
[Date "2018.07.12"]
[Round "1"]
[White "Sokolovsky, Yahli"]
[Black "Wagner, Leopold Franziskus"]
[Result "*"]
[ECO "B90"]
[WhiteElo "2106"]
[BlackElo "2108"]
[Annotator "NA"]
[PlyCount "80"]
[EventDate "2018.07.12"]
[EventType "swiss"]
[EventCountry "GER"]
[SourceTitle "playchess.com"]
[Source "ChessBase"]
[SourceQuality "1"]
[TimeControl "40/5400+30:1800+30"]

1. e4 {[%emt 0:00:00]} c5 {[%emt 0:00:00]} 2. Nf3 {[%emt 0:00:00]} d6 {[%emt 0:00:18]} 3. d4 {[%emt 0:00:00]} cxd4 {[%emt 0:00:22]} 4. Nxd4 {[%emt 0:00:00]} Nf6 {[%emt 0:00:10]} 5. Nc3 {[%emt 0:00:00]} a6 {[%emt 0:01:11]} 6. h3 {[%emt 0:00:00]} e6 {[%emt 0:01:20]} 7. g4 {[%emt 0:02:27]} b5 {[%emt 0:01:24]} 8. Bg2 {[%emt 0:00:08]} Bb7 {[%emt 0:00:07]} 9. g5 {[%emt 0:12:36]} Nfd7 {[%emt 0:01:38]} 10. O-O {[%emt 0:00:43]} Be7 {[%emt 0:01:26]} 11. f4 {[%emt 0:00:59]} O-O {[%emt 0:01:43]} 12. Be3 {[%emt 0:02:59]} Re8 {[%emt 0:05:10]} 13. Qd2 {[%emt 0:07:04]} Nb6 {[%emt 0:00:43]} 14. b3 {[%emt 0:00:51]} N8d7 {[%emt 0:01:42]} 15. f5 {[%emt 0:03:53]} Bf8 {[%emt 0:04:17]} 16. fxe6 {[%emt 0:11:41]} fxe6 {[%emt 0:00:32]} 17. Qf2 {[%emt 0:00:42]} Ne5 {[%emt 0:02:34]} 18. Ndxb5 {[%emt 0:04:55]} axb5 {[%emt 0:13:33]} 19. Bxb6 {[%emt 0:01:33]} Qxg5 {[%emt 0:00:13]} 20. Nxb5 {[%emt 0:07:41]} Bxe4 {[%emt 0:02:07]} 21. Nc7 {[%emt 0:02:35]} Re7 {[%emt 0:00:52]} 22. Nxa8 {[%emt 0:09:58]} Rf7 {[%emt 0:00:14]} 23. Qe2 {[%emt 0:00:26]} Nf3+ {[%emt 0:07:29]} 24. Kh1 {[%emt 0:00:33]} Qg3 {[%emt 0:02:29]} 25. Bg1 {[%emt 0:14:21]} d5 {[%emt 0:01:13]} 26. Rxf3 {[%emt 0:04:03]} Rxf3 {[%emt 0:01:07]} 27. Bh2 {[%emt 0:01:05]} Qxh3 {[%emt 0:00:40]} 28. Qxe4 {[%emt 0:00:52]} dxe4 {[%emt 0:00:45]} 29. Bxh3 {[%emt 0:00:04]} Rxh3 {[%emt 0:00:08]} 30. Rd1 {[%emt 0:06:11]} Rc3 {[%emt 0:07:05]} 31. Rd2 {[%emt 0:00:14]} Ba3 {[%emt 0:01:23]} 32. Re2 {[%emt 0:05:15]} e3 {[%emt 0:02:41]} 33. Be5 {[%emt 0:00:30]} Rc5 {[%emt 0:00:35]} 34. Bd4 {[%emt 0:00:21]} Ra5 {[%emt 0:01:40]} 35. Nb6 {[%emt 0:00:49]} Bc1 {[%emt 0:00:26]} 36. Bxe3 {[%emt 0:01:09]} Bxe3 {[%emt 0:00:42]} 37. Rxe3 {[%emt 0:00:09]} Rxa2 {[%emt 0:00:04]} 38. c4 {[%emt 0:00:05]} Kf7 {[%emt 0:00:09]} 39. Na4 {[%emt 0:00:13]} Ra3 {[%emt 0:01:40]} 40. c5 {[%emt 0:00:12]} Ke7 {[%emt 0:00:21]} *

[Event "EYTCC Open U12 2018"]
[Site "Bad Blankeburg"]
[Date "2018.07.12"]
[Round "1"]
[White "Sokolovsky, Yahli"]
[Black "Wagner, Leopold Franziskus"]
[Result "0-1"]
[ECO "B18"]
[WhiteElo "2106"]
[BlackElo "2108"]
[Annotator "NA"]
[PlyCount "126"]
[EventDate "2018.07.12"]
[EventType "swiss"]
[EventCountry "GER"]
[SourceTitle "playchess.com"]
[Source "ChessBase"]
[SourceQuality "1"]
[TimeControl "40/5400+30:1800+30"]

1. e4 {[%emt 0:00:00]} c6 {[%emt 0:00:00]} 2. d4 {[%emt 0:00:00]} d5 {[%emt 0:00:03]} 3. Nc3 {[%emt 0:00:24]} dxe4 {[%emt 0:00:43]} 4. Nxe4 {[%emt 0:00:16]} Bf5 {[%emt 0:00:26]} 5. Ng3 {[%emt 0:00:10]} Bg6 {[%emt 0:00:25]} 6. h4 {[%emt 0:00:13]} h6 {[%emt 0:00:05]} 7. h5 {[%emt 0:00:04]} Bh7 {[%emt 0:00:06]} 8. Nf3 {[%emt 0:00:25]} Nf6 {[%emt 0:00:15]} 9. Bd3 {[%emt 0:00:50]} Bxd3 {[%emt 0:00:45]} 10. Qxd3 {[%emt 0:00:04]} e6 {[%emt 0:00:21]} 11. Bd2 {[%emt 0:01:06]} Nbd7 {[%emt 0:00:52]} 12. O-O-O {[%emt 0:01:37]} Bd6 {[%emt 0:01:09]} 13. Ne4 {[%emt 0:02:44]} Nxe4 {[%emt 0:00:12]} 14. Qxe4 {[%emt 0:00:01]} Nf6 {[%emt 0:00:15]} 15. Qe2 {[%emt 0:00:44]} Qc7 {[%emt 0:00:32]} 16. Kb1 {[%emt 0:03:11]} O-O-O {[%emt 0:00:21]} 17. c4 {[%emt 0:02:13]} Bf4 {[%emt 0:06:01]} 18. Bc3 {[%emt 0:04:16]} Rhe8 {[%emt 0:03:36]} 19. Ne5 {[%emt 0:10:37]} Ng8 {[%emt 0:05:26]} 20. Qg4 {[%emt 0:15:15]} Bg5 {[%emt 0:02:41]} 21. f4 {[%emt 0:04:30]} Bf6 {[%emt 0:00:23]} 22. Bb4 {[%emt 0:19:31]} Kb8 {[%emt 0:00:34]} 23. Rh3 {[%emt 0:07:22]} a5 {[%emt 0:07:25]} 24. Bc5 {[%emt 0:06:18]} a4 {[%emt 0:01:26]} 25. Ra3 {[%emt 0:08:40]} b6 {[%emt 0:04:50]} 26. Bb4 {[%emt 0:00:48]} Kb7 {[%emt 0:08:29]} 27. Rxa4 {[%emt 0:02:03]} Ra8 {[%emt 0:01:47]} 28. Rxa8 {[%emt 0:01:04]} Rxa8 {[%emt 0:00:15]} 29. d5 {[%emt 0:03:31]} cxd5 {[%emt 0:06:03]} 30. cxd5 {[%emt 0:00:37]} Rc8 {[%emt 0:00:30]} 31. Bc3 {[%emt 0:03:39]} Bxe5 {[%emt 0:04:08]} 32. fxe5 {[%emt 0:00:21]} exd5 {[%emt 0:02:18]} 33. Rxd5 {[%emt 0:01:13]} Rd8 {[%emt 0:00:35]} 34. Qd4 {[%emt 0:01:08]} Rxd5 {[%emt 0:01:34]} 35. Qxd5+ {[%emt 0:00:01]} Ka7 {[%emt 0:00:06]} 36. Bb4 {[%emt 0:01:44]} Qb7 {[%emt 0:01:43]} 37. Qc4 {[%emt 0:01:11]} Ne7 {[%emt 0:01:15]} 38. a3 {[%emt 0:00:36]} Nc6 {[%emt 0:00:46]} 39. Bc3 {[%emt 0:00:30]} Qd7 {[%emt 0:00:36]} 40. Qe4 {[%emt 0:00:31]} Qe6 {[%emt 0:01:07]} 41. Qf3 {[%emt 0:13:08]} Kb8 {[%emt 0:03:42]} 42. Qg3 {[%emt 0:07:06]} g6 {[%emt 0:03:05]} 43. hxg6 {[%emt 0:01:13]} fxg6 {[%emt 0:01:38]} 44. Qf4 {[%emt 0:01:38]} g5 {[%emt 0:00:49]} 45. Qf6 {[%emt 0:02:19]} Qd5 {[%emt 0:00:40]} 46. e6 {[%emt 0:03:58]} Qd1+ {[%emt 0:02:13]} 47. Ka2 {[%emt 0:00:08]} Qd5+ {[%emt 0:00:37]} 48. b3 {[%emt 0:01:01]} Qxg2+ {[%emt 0:00:28]} 49. Bb2 {[%emt 0:00:59]} Qe2 {[%emt 0:01:05]} 50. Qf8+ {[%emt 0:02:20]} Kb7 {[%emt 0:02:29]} 51. Qf7+ {[%emt 0:00:33]} Ka6 {[%emt 0:00:36]} 52. Qe8 {[%emt 0:00:20]} Qe4 {[%emt 0:00:23]} 53. Qa8+ {[%emt 0:01:18]} Kb5 {[%emt 0:00:24]} 54. a4+ {[%emt 0:00:36]} Kc5 {[%emt 0:00:42]} 55. Qf8+ {[%emt 0:00:52]} Kd5 {[%emt 0:00:33]} 56. Ka3 {[%emt 0:00:30]} Qxe6 {[%emt 0:05:20]} 57. Bg7 {[%emt 0:00:25]} Ke4 {[%emt 0:23:57]} 58. Qa8 {[%emt 0:00:37]} Kd3 {[%emt 0:01:36]} 59. Qa6+ {[%emt 0:00:14]} Kc2 {[%emt 0:02:05]} 60. Qb5 {[%emt 0:00:21]} Qd6+ {[%emt 0:02:11]} 61. Ka2 {[%emt 0:00:46]} Nb4+ {[%emt 0:00:31]} 62. Ka3 {[%emt 0:00:01]} Nd3+ {[%emt 0:00:49]} 63. b4 {[%emt 0:00:14]} Qe6 {[%emt 0:00:26]} 0-1

[Event "EYTCC Open U12 2018"]
[Site "Bad Blankeburg"]
[Date "2018.07.12"]
[Round "1"]
[White "Pasti, Aron"]
[Black "Babula, Vlastimil"]
[Result "*"]
[ECO "E00"]
[WhiteElo "2069"]
[BlackElo "1800"]
[Annotator "NA"]
[PlyCount "50"]
[EventDate "2018.07.12"]
[EventType "swiss"]
[EventCountry "GER"]
[SourceTitle "playchess.com"]
[Source "ChessBase"]
[SourceQuality "1"]
[TimeControl "40/5400+30:1800+30"]

1. d4 {[%emt 0:00:00]} Nf6 {[%emt 0:00:00]} 2. c4 {[%emt 0:00:00]} e6 {[%emt 0:00:00]} 3. Bg5 {[%emt 0:00:00]} h6 {[%emt 0:00:32]} 4. Bxf6 {[%emt 0:00:02]} Qxf6 {[%emt 0:00:03]} 5. e3 {[%emt 0:00:18]} b6 {[%emt 0:02:40]} 6. Nf3 {[%emt 0:00:19]} Bb7 {[%emt 0:00:37]} 7. Be2 {[%emt 0:00:14]} Be7 {[%emt 0:01:09]} 8. Nc3 {[%emt 0:01:47]} O-O {[%emt 0:02:33]} 9. O-O {[%emt 0:00:52]} d6 {[%emt 0:02:16]} 10. Qc2 {[%emt 0:03:51]} Nd7 {[%emt 0:05:29]} 11. Rfe1 {[%emt 0:04:05]} Rfc8 {[%emt 0:02:25]} 12. Rad1 {[%emt 0:01:14]} g5 {[%emt 0:06:14]} 13. Nd2 {[%emt 0:07:08]} Qg7 {[%emt 0:05:59]} 14. Bd3 {[%emt 0:08:23]} Kh8 {[%emt 0:09:54]} 15. Nf1 {[%emt 0:05:59]} h5 {[%emt 0:10:58]} 16. d5 {[%emt 0:19:59]} Ne5 {[%emt 0:13:48]} 17. Be2 {[%emt 0:03:01]} g4 {[%emt 0:00:24]} 18. Nb5 {[%emt 0:14:56]} c6 {[%emt 0:09:45]} 19. dxc6 {[%emt 0:02:40]} Rxc6 {[%emt 0:00:24]} 20. Nd4 {[%emt 0:01:05]} Rcc8 {[%emt 0:00:16]} 21. e4 {[%emt 0:05:52]} Qh7 {[%emt 0:01:17]} 22. Bd3 {[%emt 0:01:42]} a6 {[%emt 0:09:32]} 23. Qb3 {[%emt 0:03:29]} Nxd3 {[%emt 0:00:46]} 24. Qxd3 {[%emt 0:00:08]} h4 {[%emt 0:02:07]} 25. b3 {[%emt 0:02:03]} Rc5 {[%emt 0:01:15]} *

[Event "EYTCC Open U12 2018"]
[Site "Bad Blankeburg"]
[Date "2018.07.12"]
[Round "1"]
[White "Pasti, Aron"]
[Black "Babula, Vlastimil"]
[Result "1-0"]
[ECO "B90"]
[WhiteElo "2069"]
[BlackElo "1800"]
[Annotator "NA"]
[PlyCount "99"]
[EventDate "2018.07.12"]
[EventType "swiss"]
[EventCountry "GER"]
[SourceTitle "playchess.com"]
[Source "ChessBase"]
[SourceQuality "1"]
[TimeControl "40/5400+30:1800+30"]

1. e4 {[%emt 0:00:00]} c5 {[%emt 0:00:00]} 2. Nf3 {[%emt 0:00:00]} d6 {[%emt 0:00:18]} 3. d4 {[%emt 0:00:00]} cxd4 {[%emt 0:00:22]} 4. Nxd4 {[%emt 0:00:00]} Nf6 {[%emt 0:00:10]} 5. Nc3 {[%emt 0:00:00]} a6 {[%emt 0:01:11]} 6. h3 {[%emt 0:00:00]} e6 {[%emt 0:01:20]} 7. g4 {[%emt 0:02:27]} b5 {[%emt 0:01:24]} 8. Bg2 {[%emt 0:00:08]} Bb7 {[%emt 0:00:07]} 9. g5 {[%emt 0:12:36]} Nfd7 {[%emt 0:01:38]} 10. O-O {[%emt 0:00:43]} Be7 {[%emt 0:01:26]} 11. f4 {[%emt 0:00:59]} O-O {[%emt 0:01:43]} 12. Be3 {[%emt 0:02:59]} Re8 {[%emt 0:05:10]} 13. Qd2 {[%emt 0:07:04]} Nb6 {[%emt 0:00:43]} 14. b3 {[%emt 0:00:51]} N8d7 {[%emt 0:01:42]} 15. f5 {[%emt 0:03:53]} Bf8 {[%emt 0:04:17]} 16. fxe6 {[%emt 0:11:41]} fxe6 {[%emt 0:00:32]} 17. Qf2 {[%emt 0:00:42]} Ne5 {[%emt 0:02:34]} 18. Ndxb5 {[%emt 0:04:55]} axb5 {[%emt 0:13:33]} 19. Bxb6 {[%emt 0:01:33]} Qxg5 {[%emt 0:00:13]} 20. Nxb5 {[%emt 0:07:41]} Bxe4 {[%emt 0:02:07]} 21. Nc7 {[%emt 0:02:35]} Re7 {[%emt 0:00:52]} 22. Nxa8 {[%emt 0:09:58]} Rf7 {[%emt 0:00:14]} 23. Qe2 {[%emt 0:00:26]} Nf3+ {[%emt 0:07:29]} 24. Kh1 {[%emt 0:00:33]} Qg3 {[%emt 0:02:29]} 25. Bg1 {[%emt 0:14:21]} d5 {[%emt 0:01:13]} 26. Rxf3 {[%emt 0:04:03]} Rxf3 {[%emt 0:01:07]} 27. Bh2 {[%emt 0:01:05]} Qxh3 {[%emt 0:00:40]} 28. Qxe4 {[%emt 0:00:52]} dxe4 {[%emt 0:00:45]} 29. Bxh3 {[%emt 0:00:04]} Rxh3 {[%emt 0:00:08]} 30. Rd1 {[%emt 0:06:11]} Rc3 {[%emt 0:07:05]} 31. Rd2 {[%emt 0:00:14]} Ba3 {[%emt 0:01:23]} 32. Re2 {[%emt 0:05:15]} e3 {[%emt 0:02:41]} 33. Be5 {[%emt 0:00:30]} Rc5 {[%emt 0:00:35]} 34. Bd4 {[%emt 0:00:21]} Ra5 {[%emt 0:01:40]} 35. Nb6 {[%emt 0:00:49]} Bc1 {[%emt 0:00:26]} 36. Bxe3 {[%emt 0:01:09]} Bxe3 {[%emt 0:00:42]} 37. Rxe3 {[%emt 0:00:09]} Rxa2 {[%emt 0:00:04]} 38. c4 {[%emt 0:00:05]} Kf7 {[%emt 0:00:09]} 39. Na4 {[%emt 0:00:13]} Ra3 {[%emt 0:01:40]} 40. c5 {[%emt 0:00:12]} Ke7 {[%emt 0:00:21]} 41. Rd3 {[%emt 0:30:19]} Ra1+ {[%emt 0:30:23]} 42. Kg2 {[%emt 0:00:04]} Rc1 {[%emt 0:00:25]} 43. Rc3 {[%emt 0:00:08]} Rxc3 {[%emt 0:03:55]} 44. Nxc3 {[%emt 0:00:09]} Kd7 {[%emt 0:01:02]} 45. b4 {[%emt 0:00:16]} Kc6 {[%emt 0:00:06]} 46. Kf3 {[%emt 0:00:04]} g6 {[%emt 0:00:23]} 47. Ne2 {[%emt 0:00:09]} e5 {[%emt 0:00:11]} 48. Ke4 {[%emt 0:00:22]} h5 {[%emt 0:00:08]} 49. Kxe5 {[%emt 0:00:23]} h4 {[%emt 0:00:09]} 50. Kf4 {[%emt 0:00:03]} 1-0